[Event "2e tournoi de GMI du Barreau de Paris"]
[Site "Paris, France"]
[Date "2021.06.19"]
[Round "1.5"]
[White "Kevlishvili, Robby"]
[Black "Vlachos, Anatole"]
[Result "1-0"]
[TimeControl "90+30"]
[WhiteElo "2499"]
[BlackElo "2439"]

1. e4 {[%clk 01:30:53]} {[%emt 00:00:06]} e5 {[%clk 01:30:56]} {[%emt
00:00:04]} 2. Nf3 {[%clk 01:31:15]} {[%emt 00:00:08]} Nc6 {[%clk 01:31:22]}
{[%emt 00:00:04]} 3. Bb5 {[%clk 01:31:35]} {[%emt 00:00:10]} a6 {[%clk
01:31:48]} {[%emt 00:00:04]} 4. Ba4 {[%clk 01:32:00]} {[%emt 00:00:04]} Nf6
{[%clk 01:32:14]} {[%emt 00:00:04]} 5. O-O {[%clk 01:32:13]} {[%emt 00:00:17]}
Be7 {[%clk 01:32:42]} {[%emt 00:00:03]} 6. Re1 {[%clk 01:32:29]} {[%emt
00:00:14]} b5 {[%clk 01:33:07]} {[%emt 00:00:05]} 7. Bb3 {[%clk 01:32:55]}
{[%emt 00:00:04]} d6 {[%clk 01:33:29]} {[%emt 00:00:08]} 8. c3 {[%clk
01:33:09]} {[%emt 00:00:16]} O-O {[%clk 01:33:54]} {[%emt 00:00:05]} 9. h3
{[%clk 01:33:29]} {[%emt 00:00:10]} Nb8 {[%clk 01:34:19]} {[%emt 00:00:04]} 10.
d4 {[%clk 01:33:25]} {[%emt 00:00:35]} Nbd7 {[%clk 01:34:45]} {[%emt 00:00:05]}
11. c4 {[%clk 01:33:46]} {[%emt 00:00:09]} c6 {[%clk 01:33:52]} {[%emt
00:01:22]} 12. Nc3 {[%clk 01:33:53]} {[%emt 00:00:23]} b4 {[%clk 01:33:21]}
{[%emt 00:01:02]} 13. Ne2 {[%clk 01:33:59]} {[%emt 00:00:24]} c5 {[%clk
01:32:17]} {[%emt 00:01:34]} 14. dxe5 {[%clk 01:33:31]} {[%emt 00:00:58]} Nxe5
{[%clk 01:24:33]} {[%emt 00:08:14]} 15. Ng3 {[%clk 01:33:04]} {[%emt 00:00:57]}
Be6 {[%clk 01:22:27]} {[%emt 00:02:36]} 16. Nxe5 {[%clk 01:28:15]} {[%emt
00:05:20]} dxe5 {[%clk 01:22:54]} {[%emt 00:00:03]} 17. Qe2 {[%clk 01:27:47]}
{[%emt 00:00:57]} Nd7 {[%clk 01:18:46]} {[%emt 00:04:38]} 18. Nf5 {[%clk
01:16:36]} {[%emt 00:11:41]} Bg5 {[%clk 01:17:32]} {[%emt 00:01:45]} 19. Ne3
{[%clk 01:16:08]} {[%emt 00:00:58]} Nb6 {[%clk 01:09:37]} {[%emt 00:08:25]} 20.
Rd1 {[%clk 01:13:08]} {[%emt 00:03:30]} Qb8 {[%clk 00:55:27]} {[%emt 00:14:39]}
21. Nd5 {[%clk 01:10:48]} {[%emt 00:02:51]} Bxc1 {[%clk 00:55:21]} {[%emt
00:00:35]} 22. Raxc1 {[%clk 01:11:09]} {[%emt 00:00:08]} a5 {[%clk 00:52:11]}
{[%emt 00:03:41]} 23. a4 {[%clk 00:52:40]} {[%emt 00:18:58]} bxa3 {[%clk
00:35:32]} {[%emt 00:17:10]} 24. bxa3 {[%clk 00:48:03]} {[%emt 00:05:08]} Nxd5
{[%clk 00:35:13]} {[%emt 00:00:48]} 25. cxd5 {[%clk 00:46:54]} {[%emt
00:01:39]} Qxb3 {[%clk 00:35:35]} {[%emt 00:00:08]} 26. dxe6 {[%clk 00:45:16]}
{[%emt 00:02:07]} fxe6 {[%clk 00:32:06]} {[%emt 00:04:00]} 27. Rd3 {[%clk
00:38:53]} {[%emt 00:06:52]} Qb5 {[%clk 00:28:20]} {[%emt 00:04:13]} 28. Qe3
{[%clk 00:37:56]} {[%emt 00:01:30]} c4 {[%clk 00:25:57]} {[%emt 00:02:53]} 29.
Rdc3 {[%clk 00:38:21]} {[%emt 00:00:06]} Rac8 {[%clk 00:26:16]} {[%emt
00:00:11]} 30. Qe2 {[%clk 00:38:15]} {[%emt 00:00:36]} Rc5 {[%clk 00:24:01]}
{[%emt 00:02:45]} 31. Rxc4 {[%clk 00:36:25]} {[%emt 00:02:21]} Rfc8 {[%clk
00:23:04]} {[%emt 00:01:26]} 32. Rxc5 {[%clk 00:34:33]} {[%emt 00:02:23]} Rxc5
{[%clk 00:23:32]} {[%emt 00:00:03]} 33. Qxb5 {[%clk 00:34:39]} {[%emt
00:00:24]} Rxb5 {[%clk 00:23:59]} {[%emt 00:00:03]} 34. Rc7 {[%clk 00:34:43]}
{[%emt 00:00:26]} Kf8 {[%clk 00:22:30]} {[%emt 00:01:59]} 35. Ra7 {[%clk
00:35:04]} {[%emt 00:00:08]} Rb1+ {[%clk 00:21:50]} {[%emt 00:01:10]} 36. Kh2
{[%clk 00:35:23]} {[%emt 00:00:10]} Rb5 {[%clk 00:22:18]} {[%emt 00:00:02]} 37.
f3 {[%clk 00:35:29]} {[%emt 00:00:24]} Rc5 {[%clk 00:19:46]} {[%emt 00:03:02]}
38. Kg3 {[%clk 00:34:27]} {[%emt 00:01:32]} Kg8 {[%clk 00:20:03]} {[%emt
00:00:12]} 39. Kg4 {[%clk 00:30:13]} {[%emt 00:04:44]} Rc2 {[%clk 00:17:55]}
{[%emt 00:02:39]} 40. Kg3 {[%clk 00:26:17]} {[%emt 00:04:26]} Rc5 {[%clk
00:18:11]} {[%emt 00:00:14]} 41. a4 {[%clk 00:26:27]} {[%emt 00:00:20]} Kf8
{[%clk 00:18:14]} {[%emt 00:00:24]} 42. h4 {[%clk 00:21:17]} {[%emt 00:05:42]}
h5 {[%clk 00:16:06]} {[%emt 00:02:38]} 43. Kh3 {[%clk 00:20:15]} {[%emt
00:01:32]} g6 {[%clk 00:14:16]} {[%emt 00:02:20]} 44. g4 {[%clk 00:17:21]}
{[%emt 00:03:25]} Kg8 {[%clk 00:14:06]} {[%emt 00:00:39]} 45. Kg3 {[%clk
00:17:24]} {[%emt 00:00:28]} Kf8 {[%clk 00:06:06]} {[%emt 00:08:30]} 46. gxh5
{[%clk 00:15:03]} {[%emt 00:02:51]} gxh5 {[%clk 00:06:35]} {[%emt 00:00:01]} 47.
Rh7 {[%clk 00:15:14]} {[%emt 00:00:19]} Kg8 {[%clk 00:03:38]} {[%emt 00:03:28]}
48. Rxh5 {[%clk 00:12:50]} {[%emt 00:02:53]} Kg7 {[%clk 00:04:07]} 49. Kg4
{[%clk 00:13:10]} {[%emt 00:00:10]} Kg6 {[%clk 00:04:32]} {[%emt 00:00:05]} 50.
f4 {[%clk 00:13:26]} {[%emt 00:00:14]} Rc4 {[%clk 00:04:44]} {[%emt 00:00:18]}
51. Rxe5 {[%clk 00:13:36]} {[%emt 00:00:20]} Kf6 {[%clk 00:05:13]} 52. h5
{[%clk 00:10:52]} {[%emt 00:03:15]} Rxa4 {[%clk 00:04:53]} {[%emt 00:00:50]} 53.
h6 {[%clk 00:11:15]} {[%emt 00:00:07]} Ra1 {[%clk 00:02:33]} {[%emt 00:02:51]}
54. Rh5 {[%clk 00:11:06]} {[%emt 00:00:38]} Rg1+ {[%clk 00:02:29]} {[%emt
00:00:35]} 55. Kf3 {[%clk 00:11:31]} {[%emt 00:00:04]} Rg8 {[%clk 00:02:24]}
{[%emt 00:00:35]} 56. Rxa5 {[%clk 00:10:32]} {[%emt 00:01:30]} Rh8 {[%clk
00:02:53]} 57. Rh5 {[%clk 00:10:20]} {[%emt 00:00:41]} Kg6 {[%clk 00:03:06]}
{[%emt 00:00:17]} 58. Rh1 {[%clk 00:10:23]} {[%emt 00:00:27]} Kh7 {[%clk
00:02:58]} {[%emt 00:00:38]} 59. Ke3 {[%clk 00:10:10]} {[%emt 00:00:43]} Rd8
{[%clk 00:03:18]} {[%emt 00:00:10]} 60. Rh2 {[%clk 00:10:09]} {[%emt 00:00:31]}
Rd6 {[%clk 00:03:43]} {[%emt 00:00:05]} 61. Rd2 {[%clk 00:08:39]} {[%emt
00:02:01]} Ra6 {[%clk 00:04:13]} {[%emt 00:00:01]} 62. e5 {[%clk 00:08:12]}
{[%emt 00:00:56]} Ra8 {[%clk 00:02:50]} {[%emt 00:01:51]} 63. Rd6 {[%clk
00:07:12]} {[%emt 00:01:32]} Re8 {[%clk 00:03:19]} 64. f5 {[%clk 00:06:10]}
{[%emt 00:01:31]} Kxh6 {[%clk 00:03:44]} {[%emt 00:00:05]} 65. Kf4 {[%clk
00:05:47]} {[%emt 00:00:53]} Kg7 {[%clk 00:03:37]} {[%emt 00:00:36]} 66. f6+
{[%clk 00:05:59]} {[%emt 00:00:18]} Kg6 {[%clk 00:03:06]} {[%emt 00:01:00]} 67.
Rd7 {[%clk 00:05:57]} {[%emt 00:00:35]} Ra8 {[%clk 00:03:24]} {[%emt 00:00:11]}
68. Rg7+ {[%clk 00:06:17]} {[%emt 00:00:10]} Kh6 {[%clk 00:03:53]} 69. Re7
{[%clk 00:06:00]} {[%emt 00:00:48]} Ra6 {[%clk 00:03:53]} {[%emt 00:00:30]} 70.
Ke4 {[%clk 00:06:18]} {[%emt 00:00:12]} Kg6 {[%clk 00:04:02]} {[%emt 00:00:21]}
71. Rg7+ {[%clk 00:06:24]} {[%emt 00:00:24]} Kh6 {[%clk 00:04:30]} {[%emt
00:00:02]} 72. Kd4 {[%clk 00:06:11]} {[%emt 00:00:43]} Ra5 {[%clk 00:01:16]}
{[%emt 00:03:44]} 73. Rg8 {[%clk 00:06:26]} {[%emt 00:00:15]} Rd5+ {[%clk
00:00:49]} {[%emt 00:00:58]} 74. Kc4 {[%clk 00:06:01]} {[%emt 00:00:55]} Rd7
{[%clk 00:01:12]} {[%emt 00:00:07]} 75. Kc5 {[%clk 00:06:25]} {[%emt 00:00:05]}
Kh7 {[%clk 00:01:35]} {[%emt 00:00:07]} 76. Rg7+ {[%clk 00:05:55]} {[%emt
00:01:00]} 1-0

[Event "2e tournoi de GMI du Barreau de Paris"]
[Site "Paris, France"]
[Date "2021.06.19"]
[Round "1.1"]
[White "Fedorchuk, Sergey A."]
[Black "Feller, Sebastien"]
[Result "1/2-1/2"]
[TimeControl "90+30"]
[WhiteElo "2616"]
[BlackElo "2568"]

1. e4 {[%clk 01:30:55]} {[%emt 00:00:04]} e5 {[%clk 01:26:50]} {[%emt
00:04:41]} 2. Nf3 {[%clk 01:31:13]} {[%emt 00:00:11]} Nc6 {[%clk 01:27:13]}
{[%emt 00:00:08]} 3. Bb5 {[%clk 01:31:26]} {[%emt 00:00:16]} Nf6 {[%clk
01:27:37]} {[%emt 00:00:07]} 4. O-O {[%clk 01:30:15]} {[%emt 00:01:41]} Nxe4
{[%clk 01:27:47]} {[%emt 00:00:20]} 5. Re1 {[%clk 01:29:37]} {[%emt 00:01:08]}
Nd6 {[%clk 01:28:10]} {[%emt 00:00:08]} 6. Nxe5 {[%clk 01:29:46]} {[%emt
00:00:20]} Be7 {[%clk 01:28:30]} {[%emt 00:00:11]} 7. Bf1 {[%clk 01:29:53]}
{[%emt 00:00:23]} Nxe5 {[%clk 01:28:49]} {[%emt 00:00:11]} 8. Rxe5 {[%clk
01:30:11]} {[%emt 00:00:11]} O-O {[%clk 01:29:04]} {[%emt 00:00:15]} 9. d4
{[%clk 01:29:54]} {[%emt 00:00:47]} Bf6 {[%clk 01:28:02]} {[%emt 00:01:33]} 10.
Re1 {[%clk 01:29:32]} {[%emt 00:00:51]} Re8 {[%clk 01:28:21]} {[%emt 00:00:12]}
11. Rxe8+ {[%clk 01:27:11]} {[%emt 00:02:51]} Nxe8 {[%clk 01:28:32]} {[%emt
00:00:19]} 12. c3 {[%clk 01:27:16]} {[%emt 00:00:25]} d5 {[%clk 01:28:42]}
{[%emt 00:00:20]} 13. Bf4 {[%clk 01:26:45]} {[%emt 00:01:01]} Bg5 {[%clk
01:26:33]} {[%emt 00:02:39]} 14. Bg3 {[%clk 01:25:05]} {[%emt 00:02:10]} Nf6
{[%clk 01:26:35]} {[%emt 00:00:27]} 15. Nd2 {[%clk 01:24:31]} {[%emt 00:01:04]}
Bg4 {[%clk 01:26:29]} {[%emt 00:00:36]} 16. Be2 {[%clk 01:22:35]} {[%emt
00:02:25]} Bxe2 {[%clk 01:26:27]} {[%emt 00:00:33]} 17. Qxe2 {[%clk 01:22:54]}
{[%emt 00:00:11]} Bxd2 {[%clk 01:26:39]} {[%emt 00:00:17]} 18. Qxd2 {[%clk
01:23:13]} {[%emt 00:00:11]} Ne4 {[%clk 01:27:03]} {[%emt 00:00:06]} 19. Qe3
{[%clk 01:22:44]} {[%emt 00:00:58]} Nxg3 {[%clk 01:27:23]} {[%emt 00:00:11]} 20.
hxg3 {[%clk 01:22:44]} {[%emt 00:00:30]} Qe8 {[%clk 01:27:37]} {[%emt
00:00:16]} 21. Re1 {[%emt 00:01:38]} 1/2-1/2

[Event "2e tournoi de GMI du Barreau de Paris"]
[Site "Paris, France"]
[Date "2021.06.19"]
[Round "1.2"]
[White "Travadon, Loic"]
[Black "David, Alberto"]
[Result "0-1"]
[TimeControl "90+30"]
[WhiteElo "2415"]
[BlackElo "2527"]

1. e4 {[%clk 01:30:56]} {[%emt 00:00:02]} c5 {[%clk 01:29:31]} {[%emt
00:01:30]} 2. Nf3 {[%clk 01:31:17]} {[%emt 00:00:09]} e6 {[%clk 01:29:55]}
{[%emt 00:00:06]} 3. d4 {[%clk 01:31:43]} {[%emt 00:00:04]} cxd4 {[%clk
01:30:21]} {[%emt 00:00:04]} 4. Nxd4 {[%clk 01:32:09]} {[%emt 00:00:04]} Nc6
{[%clk 01:30:06]} {[%emt 00:00:45]} 5. Nc3 {[%clk 01:32:33]} {[%emt 00:00:06]}
Qc7 {[%clk 01:29:43]} {[%emt 00:00:52]} 6. Be3 {[%clk 01:32:56]} {[%emt
00:00:07]} a6 {[%clk 01:29:57]} {[%emt 00:00:16]} 7. Qd2 {[%clk 01:33:21]}
{[%emt 00:00:05]} Nf6 {[%clk 01:28:48]} {[%emt 00:01:39]} 8. O-O-O {[%clk
01:33:38]} {[%emt 00:00:13]} Bb4 {[%clk 01:28:16]} {[%emt 00:01:03]} 9. f3
{[%clk 01:34:00]} {[%emt 00:00:08]} Ne5 {[%clk 01:27:57]} {[%emt 00:00:49]} 10.
Nb3 {[%clk 01:34:17]} {[%emt 00:00:13]} b5 {[%clk 01:27:59]} {[%emt 00:00:28]}
11. Kb1 {[%clk 01:34:26]} {[%emt 00:00:21]} Be7 {[%clk 01:16:23]} {[%emt
00:12:06]} 12. Qf2 {[%clk 01:33:35]} {[%emt 00:01:21]} d6 {[%clk 01:13:49]}
{[%emt 00:03:04]} 13. g4 {[%clk 01:28:15]} {[%emt 00:05:50]} Nfd7 {[%clk
01:06:42]} {[%emt 00:07:37]} 14. Rg1 {[%clk 01:27:32]} {[%emt 00:01:12]} g5
{[%clk 00:57:19]} {[%emt 00:09:54]} 15. h4 {[%clk 01:27:33]} {[%emt 00:00:29]}
h6 {[%clk 00:57:15]} {[%emt 00:00:34]} 16. Rh1 {[%clk 01:27:53]} {[%emt
00:00:09]} Rg8 {[%clk 00:54:30]} {[%emt 00:03:16]} 17. hxg5 {[%clk 01:21:24]}
{[%emt 00:06:59]} hxg5 {[%clk 00:54:48]} {[%emt 00:00:12]} 18. a3 {[%clk
01:19:18]} {[%emt 00:02:36]} Rb8 {[%clk 00:54:19]} {[%emt 00:00:58]} 19. Rh6
{[%clk 01:16:25]} {[%emt 00:03:22]} Nb6 {[%clk 00:43:48]} {[%emt 00:11:02]} 20.
Be2 {[%clk 01:15:16]} {[%emt 00:01:39]} Na4 {[%clk 00:36:42]} {[%emt 00:07:36]}
21. Bd4 {[%clk 01:09:58]} {[%emt 00:05:47]} Bd7 {[%clk 00:25:27]} {[%emt
00:11:46]} 22. Rdh1 {[%clk 01:09:17]} {[%emt 00:01:11]} Ng6 {[%clk 00:25:34]}
{[%emt 00:00:23]} 23. Nd2 {[%clk 00:51:39]} {[%emt 00:18:09]} Nxc3+ {[%clk
00:21:41]} {[%emt 00:04:23]} 24. Bxc3 {[%clk 00:52:00]} {[%emt 00:00:09]} a5
{[%clk 00:22:04]} {[%emt 00:00:06]} 25. Bd4 {[%clk 00:47:23]} {[%emt 00:05:07]}
e5 {[%clk 00:20:26]} {[%emt 00:02:08]} 26. Ba7 {[%clk 00:47:03]} {[%emt
00:00:50]} Rb7 {[%clk 00:20:28]} {[%emt 00:00:28]} 27. Be3 {[%clk 00:47:27]}
{[%emt 00:00:05]} b4 {[%clk 00:19:15]} {[%emt 00:01:44]} 28. axb4 {[%clk
00:47:37]} {[%emt 00:00:20]} Rxb4 {[%clk 00:19:35]} {[%emt 00:00:10]} 29. Qf1
{[%clk 00:44:10]} {[%emt 00:03:57]} Qb8 {[%clk 00:07:11]} {[%emt 00:12:54]} 30.
Nc4 {[%clk 00:44:04]} {[%emt 00:00:36]} Be6 {[%clk 00:07:24]} {[%emt 00:00:17]}
31. Bc1 {[%clk 00:42:25]} {[%emt 00:02:08]} a4 {[%clk 00:03:16]} {[%emt
00:04:39]} 32. Na3 {[%clk 00:39:47]} {[%emt 00:03:09]} d5 {[%clk 00:03:05]}
{[%emt 00:00:41]} 33. exd5 {[%clk 00:39:10]} {[%emt 00:01:07]} Bxd5 {[%clk
00:03:25]} {[%emt 00:00:09]} 34. Bd3 {[%clk 00:35:10]} {[%emt 00:04:30]} Nh4
{[%clk 00:02:01]} {[%emt 00:01:53]} 35. Bb5+ {[%clk 00:33:58]} {[%emt
00:01:42]} Kf8 {[%clk 00:02:28]} {[%emt 00:00:03]} 36. R6xh4 {[%clk 00:32:10]}
{[%emt 00:02:19]} gxh4 {[%clk 00:02:25]} {[%emt 00:00:33]} 37. Qd3 {[%clk
00:32:20]} {[%emt 00:00:19]} Qd6 {[%clk 00:02:44]} {[%emt 00:00:11]} 38. c4
{[%clk 00:25:44]} {[%emt 00:07:06]} Bb7 {[%clk 00:02:40]} {[%emt 00:00:34]} 39.
Qe2 {[%clk 00:23:36]} {[%emt 00:02:39]} Rb3 {[%clk 00:02:48]} {[%emt 00:00:22]}
40. Re1 {[%clk 00:18:32]} {[%emt 00:05:34]} Bxf3 {[%clk 00:01:59]} {[%emt
00:01:19]} 41. Qc2 {[%clk 00:10:52]} {[%emt 00:08:10]} Rxg4 {[%clk 00:02:01]}
{[%emt 00:00:27]} 42. Bxa4 {[%clk 00:10:32]} {[%emt 00:00:51]} Rb8 {[%clk
00:01:20]} {[%emt 00:01:11]} 43. Ka2 {[%clk 00:10:11]} {[%emt 00:00:52]} Rg2
{[%clk 00:01:26]} {[%emt 00:00:23]} 44. Qc3 {[%clk 00:10:03]} {[%emt 00:00:38]}
Qxa3+ {[%clk 00:01:37]} {[%emt 00:00:20]} 45. Qxa3 {[%clk 00:10:27]} {[%emt
00:00:06]} Bxa3 {[%clk 00:02:03]} {[%emt 00:00:04]} 46. Kxa3 {[%clk 00:10:52]}
{[%emt 00:00:04]} h3 {[%clk 00:02:20]} {[%emt 00:00:13]} 47. Be3 {[%clk
00:09:48]} {[%emt 00:01:34]} Rbxb2 {[%clk 00:01:08]} {[%emt 00:01:42]} 48. Bc5+
{[%clk 00:09:23]} {[%emt 00:00:56]} Kg8 {[%clk 00:01:32]} {[%emt 00:00:05]} 49.
Bd7 {[%clk 00:09:04]} {[%emt 00:00:49]} h2 {[%clk 00:01:39]} {[%emt 00:00:23]}
50. Bf5 {[%clk 00:09:09]} {[%emt 00:00:25]} Ra2+ {[%clk 00:01:40]} {[%emt
00:00:29]} 51. Kb3 {[%clk 00:09:33]} {[%emt 00:00:06]} Rgb2+ {[%clk 00:02:03]}
{[%emt 00:00:08]} 52. Kc3 {[%clk 00:09:59]} {[%emt 00:00:04]} h1=Q {[%clk
00:02:14]} {[%emt 00:00:18]} 0-1

[Event "2e tournoi de GMI du Barreau de Paris"]
[Site "Paris, France"]
[Date "2021.06.19"]
[Round "1.4"]
[White "Msellek, Ilyass"]
[Black "Bellahcene, Bilel"]
[Result "0-1"]
[TimeControl "90+30"]
[WhiteElo "2334"]
[BlackElo "2499"]

1. e4 {[%clk 01:30:50]} {[%emt 00:00:10]} e5 {[%clk 01:30:57]} {[%emt
00:00:04]} 2. Nf3 {[%clk 01:31:08]} {[%emt 00:00:11]} Nc6 {[%clk 01:31:24]}
{[%emt 00:00:03]} 3. Bb5 {[%clk 01:31:20]} {[%emt 00:00:19]} a6 {[%clk
01:31:50]} {[%emt 00:00:04]} 4. Ba4 {[%clk 01:31:26]} {[%emt 00:00:23]} Bc5
{[%clk 01:32:13]} {[%emt 00:00:06]} 5. O-O {[%clk 01:26:13]} {[%emt 00:05:43]}
Nge7 {[%clk 01:32:23]} {[%emt 00:00:20]} 6. c3 {[%clk 01:25:11]} {[%emt
00:01:32]} Ba7 {[%clk 01:32:48]} {[%emt 00:00:05]} 7. d4 {[%clk 01:21:49]}
{[%emt 00:03:53]} Ng6 {[%clk 01:32:51]} {[%emt 00:00:27]} 8. Bg5 {[%clk
01:13:58]} {[%emt 00:08:20]} f6 {[%clk 01:33:15]} {[%emt 00:00:07]} 9. Be3
{[%clk 01:14:20]} {[%emt 00:00:08]} O-O {[%clk 01:33:37]} {[%emt 00:00:08]} 10.
Nbd2 {[%clk 01:09:13]} {[%emt 00:05:37]} d6 {[%clk 01:32:37]} {[%emt 00:01:29]}
11. Re1 {[%clk 01:06:10]} {[%emt 00:03:34]} Kh8 {[%clk 01:33:00]} {[%emt
00:00:07]} 12. h3 {[%clk 01:02:42]} {[%emt 00:03:56]} exd4 {[%clk 01:22:32]}
{[%emt 00:10:59]} 13. cxd4 {[%clk 00:54:01]} {[%emt 00:09:11]} d5 {[%clk
01:20:25]} {[%emt 00:02:37]} 14. Bxc6 {[%clk 00:50:37]} {[%emt 00:03:54]} bxc6
{[%clk 01:20:36]} {[%emt 00:00:18]} 15. Rc1 {[%clk 00:50:47]} {[%emt 00:00:20]}
dxe4 {[%clk 01:05:47]} {[%emt 00:15:19]} 16. Nxe4 {[%clk 00:51:06]} {[%emt
00:00:10]} Be6 {[%clk 01:06:04]} {[%emt 00:00:14]} 17. b3 {[%clk 00:42:33]}
{[%emt 00:09:04]} Bb6 {[%clk 01:02:14]} {[%emt 00:04:20]} 18. Bd2 {[%clk
00:29:17]} {[%emt 00:13:46]} Re8 {[%clk 00:57:17]} {[%emt 00:05:26]} 19. Nc5
{[%clk 00:25:45]} {[%emt 00:04:02]} Bd5 {[%clk 00:49:18]} {[%emt 00:08:29]} 20.
Rc3 {[%clk 00:23:20]} {[%emt 00:02:55]} Rxe1+ {[%clk 00:44:46]} {[%emt
00:05:02]} 21. Nxe1 {[%clk 00:23:22]} {[%emt 00:00:28]} Qe7 {[%clk 00:39:15]}
{[%emt 00:06:00]} 22. Re3 {[%clk 00:18:16]} {[%emt 00:05:36]} Qf7 {[%clk
00:39:07]} {[%emt 00:00:39]} 23. Qh5 {[%clk 00:17:12]} {[%emt 00:01:34]} Kg8
{[%clk 00:36:48]} {[%emt 00:02:49]} 24. Ned3 {[%clk 00:16:38]} {[%emt
00:01:05]} a5 {[%clk 00:33:04]} {[%emt 00:04:14]} 25. Re1 {[%clk 00:13:01]}
{[%emt 00:04:07]} Rd8 {[%clk 00:29:19]} {[%emt 00:04:14]} 26. Qg4 {[%clk
00:09:34]} {[%emt 00:03:58]} Nf8 {[%clk 00:26:19]} {[%emt 00:03:30]} 27. Qe2
{[%clk 00:08:09]} {[%emt 00:01:55]} Ra8 {[%clk 00:20:02]} {[%emt 00:06:47]} 28.
Bc3 {[%clk 00:06:04]} {[%emt 00:02:35]} Ng6 {[%clk 00:19:48]} {[%emt 00:00:44]}
29. Qg4 {[%clk 00:03:00]} {[%emt 00:03:34]} Rf8 {[%clk 00:13:52]} {[%emt
00:06:25]} 30. Qd7 {[%clk 00:01:48]} {[%emt 00:01:43]} Qxd7 {[%clk 00:13:41]}
{[%emt 00:00:42]} 31. Nxd7 {[%clk 00:02:17]} {[%emt 00:00:01]} Rd8 {[%clk
00:13:58]} {[%emt 00:00:12]} 32. N7c5 {[%clk 00:02:04]} {[%emt 00:00:43]} Kf7
{[%clk 00:14:22]} {[%emt 00:00:06]} 33. f3 {[%clk 00:01:44]} {[%emt 00:00:51]}
Ne7 {[%clk 00:14:02]} {[%emt 00:00:50]} 34. Kf2 {[%clk 00:01:23]} {[%emt
00:00:51]} Nf5 {[%clk 00:13:00]} {[%emt 00:01:31]} 35. Nb7 {[%clk 00:01:03]}
{[%emt 00:00:51]} Ra8 {[%clk 00:12:19]} {[%emt 00:01:11]} 36. Nbc5 {[%clk
00:01:19]} {[%emt 00:00:14]} g5 {[%clk 00:12:45]} {[%emt 00:00:04]} 37. g3
{[%clk 00:01:30]} {[%emt 00:00:19]} h6 {[%clk 00:11:49]} {[%emt 00:01:26]} 38.
Re2 {[%clk 00:01:43]} {[%emt 00:00:17]} Rh8 {[%clk 00:09:22]} {[%emt 00:02:56]}
39. a4 {[%clk 00:01:15]} {[%emt 00:00:58]} h5 {[%clk 00:09:31]} {[%emt
00:00:20]} 40. Re1 {[%clk 00:01:06]} {[%emt 00:00:39]} Ne7 {[%clk 00:05:24]}
{[%emt 00:04:37]} 41. b4 {[%clk 00:00:38]} {[%emt 00:00:59]} axb4 {[%clk
00:04:53]} {[%emt 00:01:02]} 42. Bxb4 {[%clk 00:00:50]} {[%emt 00:00:17]} Ng6
{[%clk 00:04:30]} {[%emt 00:00:52]} 43. Rb1 {[%clk 00:00:48]} {[%emt 00:00:33]}
h4 {[%clk 00:02:12]} {[%emt 00:02:48]} 44. g4 {[%clk 00:00:53]} {[%emt
00:00:25]} Bc4 {[%clk 00:02:25]} {[%emt 00:00:17]} 45. Nb2 {[%clk 00:00:32]}
{[%emt 00:00:52]} Bxc5 {[%emt 00:00:57]} 46. dxc5 {[%clk 00:00:35]} {[%emt
00:00:14]} Ba6 {[%clk 00:02:34]} {[%emt 00:00:07]} 47. Rd1 {[%clk 00:00:44]}
{[%emt 00:00:20]} Nf4 {[%clk 00:02:46]} {[%emt 00:00:18]} 48. Rd7+ {[%clk
00:00:57]} {[%emt 00:00:18]} Kg6 {[%clk 00:03:10]} {[%emt 00:00:06]} 49. Bc3
{[%clk 00:00:34]} {[%emt 00:00:53]} Nxh3+ {[%clk 00:03:24]} {[%emt 00:00:16]}
50. Kg2 {[%clk 00:01:02]} {[%emt 00:00:02]} Nf4+ {[%clk 00:03:49]} {[%emt
00:00:05]} 51. Kh2 {[%clk 00:01:22]} {[%emt 00:00:10]} Nd5 {[%clk 00:04:00]}
{[%emt 00:00:19]} 52. Bd4 {[%clk 00:00:50]} {[%emt 00:01:02]} Re8 {[%clk
00:03:43]} {[%emt 00:00:46]} 53. Nd1 {[%clk 00:00:50]} {[%emt 00:00:30]} Re2+
{[%clk 00:03:14]} {[%emt 00:00:59]} 54. Bf2 {[%clk 00:00:46]} {[%emt 00:00:34]}
Rd2 {[%clk 00:03:35]} {[%emt 00:00:09]} 55. Ne3 {[%clk 00:01:13]} {[%emt
00:00:04]} Nxe3 {[%clk 00:03:45]} {[%emt 00:00:20]} 0-1